bitfinex/quotes_SOLUSD_20250402
["timestamp","ask_amount","ask_price","bid_price","bid_amount"]
[1743587073431,0.03,125.54,125.53,20.0]
[1743587073630,0.03,125.54,125.53,27.24]
[1743587074127,0.03,125.54,125.53,27.38216157]
[1743587086871,0.03,125.54,125.53,256.62216157]
[1743587089590,12.69326724,125.54,125.53,249.24]
[1743587089877,19.25486724,125.54,125.53,256.48]
[1743587090985,6.5916,125.54,125.53,256.48]
[1743587091746,0.03,125.54,125.53,256.62216157]
[1743587093875,0.03,125.54,125.53,256.48]
[1743587094978,0.03,125.54,125.53,256.62216157]
[1743587095458,0.03,125.54,125.53,256.48]
[1743587096054,12.69326724,125.54,125.53,249.24]
[1743587096272,20.33736724,125.54,125.51,0.063]
[1743587096469,0.14216157,125.51,125.49,229.303]
[1743587096679,18.75966724,125.5,125.49,229.303]
[1743587097193,26.72776724,125.5,125.49,229.303]
[1743587097352,14.0645,125.5,125.49,229.303]
[1743587097552,26.72776724,125.5,125.49,236.543]
[1743587100284,26.86992881,125.5,125.49,229.303]
[1743587100579,26.86992881,125.5,125.47,7.303]
[1743587100580,20.14216157,125.48,125.47,7.303]
[1743587100773,32.80542881,125.48,125.47,7.303]
[1743587102280,40.63256724,125.48,125.47,7.303]
[1743587102486,20.63256724,125.48,125.47,7.303]
[1743587103257,20.77472881,125.48,125.47,7.303]
[1743587103454,107.41626157,125.47,125.46,0.063]
[1743587103660,172.26069777,125.47,125.44,229.28]
[1743587103875,12.80542881,125.45,125.44,229.28]
[1743587104504,20.77672881,125.45,125.44,229.28]
[1743587104706,20.77672881,125.45,125.44,236.52]
[1743587105479,0.14216157,125.44,125.43,7.24]
[1743587105681,12.80542881,125.44,125.43,7.24]
[1743587106594,20.77732881,125.44,125.43,7.24]
[1743587107493,40.70712881,125.44,125.43,7.24]
[1743587110471,0.14216157,125.42,125.4,0.063]
[1743587110671,12.66326724,125.41,125.4,0.063]
[1743587111390,20.63706724,125.41,125.4,0.063]
[1743587111596,20.63706724,125.41,125.4,7.303]
[1743587116912,20.77922881,125.41,125.4,7.303]
[1743587117208,152.13229777,125.41,125.4,0.0001]
[1743587117388,158.78339777,125.41,125.4,0.0001]
[1743587118614,177.43304663,125.41,125.4,0.0001]
[1743587119187,95.46706157,125.41,125.4,0.0001]
[1743587119396,108.13032881,125.41,125.4,0.0001]
[1743587120221,27.28816724,125.41,125.4,0.0001]
[1743587121817,27.43032881,125.41,125.4,0.0001]
[1743587122112,158.78339777,125.41,125.4,0.0001]
[1743587124101,0.14216157,125.4,125.39,0.063]
[1743587124414,63.45849777,125.4,125.39,0.0001]
[1743587125817,71.43289777,125.4,125.39,0.0001]
[1743587126298,8.0859,125.37,125.36,229.5]
[1743587126613,20.74916724,125.37,125.36,229.5]
[1743587127514,20.74916724,125.37,125.36,236.74]
[1743587127719,20.89132881,125.37,125.36,236.74]
[1743587127922,28.86762881,125.37,125.36,236.74]
[1743587128223,14.4972,125.37,125.36,236.74]
[1743587128412,27.16046724,125.37,125.36,236.74]
[1743587130431,27.30262881,125.37,125.36,236.74]
[1743587131921,27.30262881,125.37,125.36,229.5]
[1743587132125,27.30262881,125.37,125.36,236.74]
[1743587134707,27.16046724,125.37,125.36,236.74]
[1743587135827,27.30262881,125.37,125.36,236.74]
[1743587136133,45.95227767,125.37,125.36,236.74]
[1743587137433,67.43957767,125.37,125.34,7.24]
[1743587137818,12.80542881,125.35,125.34,7.24]
[1743587138530,20.78302881,125.35,125.34,7.24]
[1743587138925,0.14216157,125.34,125.3,20.0]
[1743587139122,12.66326724,125.33,125.31,7.24]
[1743587139322,12.80542881,125.34,125.31,7.24]
[1743587141033,7.9789,125.33,125.31,7.24]
[1743587141433,7.9785,125.34,125.31,7.24]
[1743587141631,7.9778,125.35,125.33,20.0]
[1743587145726,20.64016724,125.37,125.33,20.0]
[1743587145933,20.63926724,125.38,125.35,20.0]
[1743587146136,7.976,125.38,125.36,7.24]
[1743587146339,101.33846724,125.39,125.36,7.24]
[1743587146822,88.6752,125.39,125.37,20.0]
[1743587147141,80.7,125.39,125.37,20.0]
[1743587147444,7.9747,125.4,125.37,20.0]
[1743587147818,12.69326724,125.41,125.37,20.0]
[1743587147819,8.0041,125.41,125.37,20.0]
[1743587148021,20.66736724,125.41,125.37,20.0]
[1743587148537,8.0041,125.41,125.39,20.0]
[1743587148745,8.0041,125.41,125.4,7.24]
[1743587150441,20.66736724,125.41,125.4,7.24]
[1743587158454,8.0041,125.41,125.4,7.24]
[1743587158949,0.03,125.41,125.4,7.24]
[1743587159854,12.69326724,125.41,125.4,7.24]
[1743587160032,0.03,125.41,125.4,7.24]
[1743587165256,0.03,125.41,125.4,7.38216157]
[1743587166364,0.03,125.41,125.4,15.35656157]
[1743587167245,0.03,125.41,125.4,35.04751043]
[1743587167555,0.03,125.41,125.4,119.9148411]
[1743587170443,0.03,125.41,125.4,89.32346157]
[1743587170639,0.03,125.41,125.4,88.28216157]
[1743587171744,0.03,125.41,125.4,7.38216157]
[1743587172783,0.03,125.41,125.4,34.00621043]
[1743587173261,0.03,125.41,125.4,26.03181043]
[1743587174867,0.03,125.41,125.4,7.38216157]
[1743587176950,0.03,125.41,125.4,15.35656157]
[1743587177146,0.03,125.41,125.4,0.14216157]
[1743587177365,0.03,125.41,125.4,7.36216157]
[1743587178846,0.03,125.41,125.4,15.33656157]
[1743587179958,0.03,125.41,125.4,244.79656157]
[1743587180158,0.03,125.41,125.4,263.44621043]
[1743587182385,1.5696,125.47,125.46,20.0]
[1743587182573,1.5696,125.47,125.46,27.22]
[1743587183164,9.5396,125.47,125.46,7.22]
[1743587183358,22.20286724,125.47,125.46,7.22]
[1743587187499,22.23286724,125.47,125.46,7.22]
[1743587189796,22.23286724,125.47,125.42,229.44]
[1743587189797,18.79181043,125.45,125.42,229.44]
[1743587190090,12.80542881,125.43,125.42,229.44]
[1743587190872,12.66326724,125.44,125.42,229.44]
[1743587191678,7.9719,125.44,125.42,229.44]
[1743587193189,20.63516724,125.44,125.42,229.44]
[1743587194081,7.9719,125.44,125.42,229.44]
[1743587194700,20.63486724,125.45,125.42,229.44]
[1743587194877,7.9716,125.45,125.43,20.0]
[1743587197578,14.067,125.46,125.43,20.0]
[1743587197776,6.096,125.46,125.43,27.9725]
[1743587198498,0.03,125.47,125.45,20.0]
[1743587198799,0.17216157,125.47,125.46,7.22]
[1743587198983,12.83542881,125.47,125.46,7.22]
[1743587200491,12.69326724,125.47,125.46,7.22]
[1743587200900,20.66326724,125.47,125.46,7.22]
[1743587201092,8.0,125.47,125.46,7.22]
[1743587202483,0.03,125.47,125.46,7.22]
[1743587208193,12.69326724,125.47,125.46,7.22]
[1743587208812,20.66326724,125.47,125.46,7.22]
[1743587209112,8.0,125.47,125.46,7.22]
[1743587211110,0.03,125.47,125.46,7.22]
[1743587212918,0.03,125.47,125.45,20.0]
[1743587213110,0.03,125.47,125.46,7.22]
[1743587215617,0.03,125.47,125.45,20.0]
[1743587215798,12.69326724,125.47,125.46,7.22]
[1743587216194,12.83542881,125.47,125.46,7.22]
[1743587216394,0.14216157,125.46,125.44,229.42]
[1743587216706,12.66326724,125.45,125.44,229.42]
[1743587217099,20.63456724,125.45,125.44,229.42]
[1743587217511,20.63456724,125.45,125.44,236.64]
[1743587219310,7.9713,125.45,125.44,236.64]
[1743587220804,7.9709,125.46,125.44,236.64]
[1743587222199,0.03,125.47,125.45,20.0]
[1743587222805,0.03,125.47,125.46,0.14216157]
[1743587223904,0.03,125.47,125.45,27.9712]
[1743587224235,0.03,125.47,125.46,0.14216157]
[1743587225312,0.03,125.47,125.46,26.76241043]
[1743587225502,0.03,125.47,125.46,107.66241043]
[1743587225817,0.03,125.5,125.49,20.14216157]
[1743587226125,0.03,125.5,125.49,126.91181043]
[1743587227325,0.03,125.5,125.49,134.88051043]
[1743587228207,0.03,125.5,125.49,108.26216157]
[1743587233739,0.03,125.5,125.49,134.88051043]
[1743587235380,0.03,125.5,125.49,364.20051043]
[1743587235919,0.03,125.5,125.49,356.23181043]
[1743587236944,0.03,125.5,125.49,349.01181043]
[1743587237140,0.03,125.5,125.49,356.23181043]
[1743587237443,0.03,125.5,125.49,364.20051043]
[1743587239058,0.03,125.5,125.49,337.58216157]
[1743587239465,0.03,125.5,125.49,249.32]
[1743587239759,12.69326724,125.5,125.49,256.54]
[1743587240131,0.03,125.5,125.49,256.54]
[1743587242360,7.9981,125.5,125.49,256.54]
[1743587243059,0.03,125.5,125.49,256.68216157]
[1743587248343,0.03,125.5,125.49,264.65086157]
[1743587250145,0.03,125.5,125.49,283.30051043]
[1743587254046,0.03,125.5,125.49,364.20051043]
[1743587255787,0.03,125.5,125.49,337.58216157]
[1743587259491,0.03,125.5,125.49,345.55086157]
[1743587261894,0.03,125.5,125.49,364.20051043]
[1743587271180,0.03,125.52,125.51,20.14216157]
[1743587271379,0.03,125.52,125.51,32.72806018]
[1743587272011,0.03,125.54,125.53,40.14216157]
[1743587272309,0.03,125.54,125.53,136.20836157]
[1743587273211,0.03,125.54,125.53,128.24216157]
[1743587273699,0.03,125.54,125.53,337.48216157]
[1743587277233,0.03,125.54,125.53,256.44]
[1743587277403,8.2168,125.54,125.53,256.44]
[1743587277598,16.1823,125.54,125.53,256.44]
[1743587283326,16.1823,125.54,125.53,27.2]
[1743587285526,28.98772881,125.54,125.53,7.2]
[1743587285906,16.32446157,125.54,125.53,7.2]
[1743587288597,16.1823,125.54,125.53,27.2]
[1743587290436,6.635,125.54,125.53,27.2]
[1743587290823,0.03,125.54,125.53,35.1662]
[1743587291125,0.03,125.54,125.53,35.30836157]
[1743587293634,0.03,125.54,125.53,35.1662]
[1743587295461,0.03,125.54,125.53,27.2]
[1743587296936,6.6606,125.54,125.53,27.2]
[1743587298536,14.6261,125.54,125.53,27.2]
[1743587300347,6.6606,125.54,125.53,27.2]
[1743587300939,14.6261,125.54,125.53,27.2]
[1743587301249,27.43152881,125.54,125.53,7.2]
[1743587308046,6.80276157,125.54,125.53,7.2]
[1743587308236,6.6606,125.54,125.53,27.2]
[1743587308437,0.03,125.54,125.53,27.34216157]
[1743587309451,0.03,125.54,125.53,35.30836157]
[1743587310650,0.03,125.54,125.53,27.34216157]
[1743587311937,0.03,125.54,125.53,35.30836157]
[1743587312140,0.03,125.54,125.53,116.20836157]
[1743587312824,0.03,125.54,125.53,134.85801043]
[1743587313141,0.03,125.56,125.55,58.79181043]
[1743587313444,0.03,125.56,125.55,139.69181043]
[1743587314363,0.03,125.56,125.55,147.65671043]
[1743587315729,0.03,125.59,125.58,20.0]
[1743587315947,0.03,125.59,125.58,108.1]
[1743587316542,0.03,125.59,125.58,116.063]
[1743587316739,0.03,125.59,125.58,134.85481043]
[1743587318355,0.03,125.59,125.58,136.44632749]
[1743587319838,0.03,125.59,125.58,136.94632749]
[1743587320034,0.03,125.59,125.58,136.44632749]
[1743587320462,0.03,125.59,125.58,136.94632749]
[1743587320657,0.0001,125.6,125.59,100.16181043]
[1743587321035,0.03,125.61,125.6,39.29181043]
[1743587321866,0.03,125.61,125.6,45.50495116]
[1743587322335,0.03,125.61,125.6,39.29181043]
[1743587323046,0.03,125.61,125.6,47.25351043]
[1743587323461,0.03,125.61,125.6,46.75351043]
[1743587323664,0.03,125.61,125.6,47.25351043]
[1743587323842,0.03,125.61,125.6,46.75351043]
[1743587324044,0.03,125.61,125.6,47.25351043]
[1743587324245,0.03,125.61,125.6,128.12351043]
[1743587324545,0.03,125.61,125.6,127.62351043]
[1743587324753,0.03,125.61,125.6,128.12351043]
[1743587325146,0.03,125.61,125.6,127.62351043]
[1743587325489,0.03,125.61,125.6,128.12351043]
[1743587326269,0.03,125.61,125.6,356.70351043]
[1743587327374,0.03,125.61,125.6,338.05386157]
[1743587329075,0.03,125.61,125.6,337.27216157]
[1743587329290,0.03,125.61,125.6,337.13]
[1743587330769,0.03,125.61,125.6,345.23386157]
[1743587331462,0.03,125.61,125.6,337.27216157]
[1743587331869,0.03,125.61,125.6,337.33516157]
[1743587334767,0.03,125.61,125.6,337.193]
[1743587337390,0.03,125.61,125.6,345.1547]
[1743587339079,0.03,125.61,125.6,264.2847]
[1743587339687,0.03,125.61,125.6,264.42686157]
[1743587344890,0.03,125.61,125.6,345.29686157]
[1743587348695,0.03,125.63,125.62,40.0]
[1743587348872,0.03,125.63,125.62,120.87]
[1743587349571,0.03,125.63,125.62,128.8305]
[1743587349771,0.03,125.63,125.62,132.71899121]
[1743587357999,0.03,125.63,125.62,128.8305]
[1743587358488,0.03,125.63,125.62,121.01216157]
[1743587358800,0.03,125.63,125.62,128.19216157]
[1743587359396,0.03,125.63,125.62,136.15266157]
[1743587361403,0.03,125.63,125.62,140.05404569]
[1743587362205,0.03,125.63,125.62,136.15266157]
[1743587362394,0.03,125.63,125.62,128.19216157]
[1743587364711,0.03,125.63,125.62,357.21216157]
[1743587365599,0.03,125.63,125.62,365.17266157]
[1743587381120,0.03,125.63,125.62,383.82231043]
[1743587384926,0.03,125.69,125.68,40.14216157]
[1743587385233,0.03,125.69,125.68,128.19216157]
[1743587385425,0.03,125.69,125.68,146.84181043]
[1743587386322,0.03,125.69,125.68,128.19216157]
[1743587387030,0.03,125.69,125.68,136.14886157]
[1743587389927,0.03,125.69,125.68,365.10886157]
[1743587391633,0.03,125.69,125.68,383.75851043]
[1743587394543,0.03,125.69,125.68,365.10886157]
[1743587394715,0.03,125.69,125.68,349.97216157]
[1743587394914,0.03,125.69,125.68,357.13216157]
[1743587395516,0.03,125.69,125.68,365.08886157]
[1743587398234,0.03,125.69,125.68,365.08886157]
[1743587401551,0.03,125.69,125.68,357.13216157]
[1743587401852,0.03,125.69,125.68,365.08886157]
[1743587402521,0.03,125.69,125.68,276.26216157]
[1743587402747,0.03,125.69,125.68,276.12]
[1743587403145,0.03,125.69,125.68,276.26216157]
[1743587403523,0.03,125.69,125.68,284.21886157]
[1743587404422,0.03,125.69,125.68,365.08886157]
[1743587406626,0.03,125.69,125.68,383.73851043]
[1743587407547,0.03,125.69,125.68,365.08886157]
[1743587408326,0.03,125.69,125.68,383.73851043]
[1743587412843,0.03,125.69,125.68,384.23851043]
[1743587418261,0.03,125.72,125.71,20.0]
[1743587418447,0.03,125.72,125.71,100.87]
[1743587418637,0.03,125.72,125.71,329.73]
[1743587420168,0.03,125.72,125.71,337.6848]
[1743587423375,0.03,125.72,125.71,256.95696157]
[1743587423664,0.03,125.72,125.71,275.60661043]
[1743587424548,0.03,125.73,125.72,18.79181043]
[1743587424853,0.03,125.74,125.73,20.14216157]
[1743587425352,0.03,125.74,125.73,119.69181043]
[1743587426370,0.03,125.74,125.73,127.64531043]
[1743587429567,0.03,125.74,125.73,108.20216157]
[1743587431688,0.03,125.74,125.73,116.15566157]
[1743587433101,0.03,125.74,125.73,108.20216157]
[1743587434097,0.03,125.74,125.73,116.15566157]
[1743587434471,0.03,125.74,125.73,134.80531043]
[1743587435478,0.03,125.74,125.73,116.15566157]
[1743587435689,0.03,125.74,125.73,108.20216157]
[1743587436280,20.45106724,125.74,125.73,27.16]
[1743587436782,20.59322881,125.74,125.73,20.0]
[1743587436983,20.59322881,125.74,125.73,27.16]
[1743587438163,28.54612881,125.74,125.73,27.16]
[1743587439382,28.54612881,125.74,125.71,228.86]
[1743587439589,12.80542881,125.73,125.72,7.16]
[1743587440093,0.14216157,125.73,125.72,7.16]
[1743587442889,7.92996157,125.74,125.73,20.0]
[1743587443788,7.7878,125.74,125.73,20.0]
[1743587443992,7.92996157,125.74,125.73,20.0]
[1743587444379,7.7878,125.74,125.73,20.14216157]
[1743587446500,7.7878,125.74,125.73,20.20516157]
[1743587448801,7.7878,125.74,125.73,20.063]
[1743587449105,7.7878,125.74,125.73,20.20516157]
[1743587449396,7.92996157,125.74,125.73,20.063]
[1743587452077,7.7878,125.74,125.73,20.063]
[1743587452281,7.92996157,125.74,125.73,20.063]
[1743587453304,6.41906157,125.74,125.73,20.063]
[1743587457106,6.41906157,125.74,125.73,248.903]
[1743587461092,27.03522881,125.74,125.73,256.063]
[1743587461408,14.37196157,125.74,125.73,256.063]
[1743587461617,6.41906157,125.74,125.73,256.063]
[1743587465720,27.03522881,125.74,125.73,256.063]
[1743587466091,28.63342881,125.74,125.73,256.063]
[1743587466515,15.97016157,125.74,125.73,256.063]
[1743587467222,28.63342881,125.74,125.73,256.063]
[1743587469303,28.63342881,125.74,125.73,248.903]
[1743587469605,28.63342881,125.74,125.73,256.063]
[1743587472620,28.63342881,125.74,125.73,248.903]
[1743587472804,28.63342881,125.74,125.73,256.063]
[1743587475839,0.14216157,125.73,125.68,0.063]
[1743587476128,12.66326724,125.69,125.68,0.063]
[1743587476427,12.80542881,125.69,125.68,7.223]
[1743587476627,0.14216157,125.69,125.68,7.223]
[1743587477208,8.09816157,125.69,125.68,7.223]
[1743587479135,26.87842881,125.69,125.68,0.063]
[1743587479739,45.52807767,125.69,125.68,0.063]
[1743587481040,26.87842881,125.69,125.68,0.063]
[1743587481222,14.21516157,125.69,125.68,0.063]
[1743587481531,26.87842881,125.69,125.68,0.063]
[1743587485033,14.21516157,125.69,125.68,0.063]
[1743587485234,8.09816157,125.69,125.68,0.063]
[1743587488549,6.3296,125.72,125.69,20.0]
[1743587488851,14.21846724,125.73,125.69,20.0]
[1743587489140,0.14216157,125.72,125.69,20.0]
[1743587489732,22.17206724,125.73,125.69,20.0]
[1743587490050,0.14216157,125.72,125.69,20.0]
[1743587490671,0.14216157,125.7,125.68,0.063]
[1743587490955,12.80542881,125.69,125.68,0.063]
[1743587492535,41.00437767,125.69,125.68,0.063]
[1743587495953,41.00437767,125.69,125.68,7.223]
[1743587498652,41.00437767,125.69,125.68,0.063]
[1743587498863,41.00437767,125.69,125.68,7.223]
[1743587499037,18.79181043,125.68,125.67,7.223]
[1743587499236,112.15507767,125.68,125.67,7.223]
[1743587499635,112.15507767,125.68,125.67,0.063]
[1743587499834,112.15507767,125.68,125.67,7.223]
[1743587500563,120.11177767,125.68,125.67,7.223]
[1743587507553,0.28432314,125.67,125.61,249.083]
[1743587507753,0.14216157,125.63,125.61,229.083]
[1743587508770,0.14216157,125.63,125.62,7.16]
[1743587511483,0.14216157,125.64,125.62,7.16]
[1743587512565,0.14216157,125.64,125.63,20.0]
[1743587512763,20.61996724,125.68,125.63,20.0]
[1743587512979,20.61956724,125.69,125.65,20.0]
[1743587513289,20.61956724,125.69,125.66,7.16]
[1743587513485,0.14216157,125.68,125.66,7.16]
[1743587513689,12.80542881,125.68,125.66,7.16]
[1743587514587,8.09946157,125.67,125.66,7.16]
[1743587516398,0.14216157,125.67,125.66,7.16]
[1743587517291,0.14216157,125.67,125.66,7.223]
[1743587520079,0.14216157,125.67,125.66,15.1809]
[1743587520388,0.14216157,125.67,125.66,7.223]
[1743587524888,0.14216157,125.67,125.66,15.1809]
[1743587527096,0.03,125.69,125.67,20.14216157]
[1743587528765,0.03,125.69,125.68,8.09886157]
[1743587528968,0.03,125.69,125.67,27.957]
[1743587537105,0.03,125.69,125.68,236.9167]
[1743587541701,0.03,125.69,125.68,237.05886157]
[1743587545514,0.03,125.69,125.68,238.10016157]
[1743587546226,0.03,125.69,125.68,237.05886157]
[1743587546825,0.03,125.69,125.68,236.1]
[1743587547721,0.03,125.69,125.68,228.96]
[1743587547916,8.12816157,125.69,125.68,236.1]
[1743587548823,8.12816157,125.69,125.68,228.96]
[1743587549127,8.12816157,125.69,125.68,236.1]
[1743587550235,8.12816157,125.69,125.68,228.96]
[1743587550540,20.79142881,125.69,125.68,236.1]
[1743587552637,8.12816157,125.69,125.68,236.1]
[1743587554840,0.17216157,125.69,125.68,236.1]
[1743587555146,0.03,125.69,125.68,236.24216157]
[1743587555311,0.03,125.69,125.68,244.19886157]
[1743587555512,0.03,125.69,125.68,236.24216157]
[1743587556045,0.03,125.69,125.68,236.1]
[1743587556647,0.03,125.69,125.68,236.24216157]
[1743587559512,0.03,125.69,125.68,244.19886157]
[1743587564345,0.03,125.69,125.68,236.24216157]
[1743587570552,0.03,125.69,125.68,244.19886157]
[1743587571065,0.03,125.69,125.68,236.24216157]
[1743587574145,0.03,125.69,125.68,228.96]
[1743587574578,12.83542881,125.69,125.68,236.1]
[1743587575247,0.17216157,125.69,125.68,236.1]
[1743587575755,8.12816157,125.69,125.68,236.1]
[1743587575954,0.17216157,125.69,125.68,236.1]
[1743587576368,8.12816157,125.69,125.68,236.1]
[1743587577771,0.17216157,125.69,125.68,236.1]
[1743587581586,8.12816157,125.69,125.68,236.1]
[1743587583684,8.12816157,125.69,125.68,228.96]
[1743587583897,8.12816157,125.69,125.68,236.1]
[1743587588186,0.17216157,125.69,125.68,236.1]
[1743587588590,0.03,125.69,125.68,244.19886157]
[1743587594000,0.03,125.69,125.68,325.09886157]
[1743587595603,0.03,125.69,125.68,343.74851043]
[1743587599800,4.892e-05,125.73,125.72,20.0]
[1743587600107,4.892e-05,125.73,125.72,256.02]
[1743587606113,12.80547773,125.73,125.72,228.9]
[1743587606415,12.80547773,125.73,125.72,236.02]
[1743587607409,12.80547773,125.73,125.72,228.9]
[1743587607705,12.80547773,125.73,125.72,236.02]
[1743587607895,20.75897773,125.73,125.72,236.02]
[1743587612926,20.61681616,125.73,125.72,256.02]
[1743587613107,7.95354892,125.73,125.72,256.02]
[1743587613302,8.09571049,125.73,125.72,256.02]
[1743587615810,0.14221049,125.73,125.72,256.02]
[1743587618608,8.09571049,125.73,125.72,256.02]
[1743587621316,8.09571049,125.73,125.72,236.02]
[1743587622141,20.75897773,125.73,125.72,236.02]
[1743587622334,60.81482659,125.73,125.72,7.12]
[1743587622508,0.14216157,125.72,125.68,248.88]
[1743587622714,0.14216157,125.69,125.68,248.88]
[1743587623335,8.09816157,125.69,125.68,248.88]
[1743587623722,8.09816157,125.69,125.68,256.0]
[1743587636222,8.09816157,125.69,125.68,256.063]
[1743587639457,8.09816157,125.69,125.68,27.183]
[1743587644345,8.09816157,125.69,125.68,256.143]
[1743587647175,20.76142881,125.69,125.68,256.143]
[1743587647379,22.27362881,125.69,125.68,229.023]
[1743587647679,22.27362881,125.69,125.68,236.143]
[1743587649389,8.09816157,125.69,125.68,236.143]
[1743587651054,20.76142881,125.69,125.68,236.143]
[1743587652984,8.09816157,125.69,125.68,236.143]
[1743587657685,20.76142881,125.69,125.68,236.143]
[1743587658664,20.76142881,125.69,125.68,7.183]
[1743587659686,0.14216157,125.69,125.68,7.183]
[1743587660488,7.9551,125.71,125.69,20.0]
[1743587660791,0.14216157,125.7,125.69,20.0]
[1743587661288,32.54771616,125.73,125.71,20.0]
[1743587661289,4.892e-05,125.73,125.71,20.0]
[1743587661586,4.892e-05,125.73,125.72,7.12]
[1743587662681,4.892e-05,125.73,125.72,15.21626157]
[1743587664990,4.892e-05,125.73,125.72,118.71217006]
[1743587665691,0.03,125.74,125.73,45.31431043]
[1743587666863,0.03,125.74,125.73,53.26781043]
[1743587667109,0.03,125.76,125.75,40.14216157]
[1743587668174,0.03,125.76,125.75,48.09436157]
[1743587668493,0.03,125.76,125.75,40.14216157]
[1743587671403,0.03,125.76,125.75,66.74401043]
[1743587672184,0.03,125.76,125.75,40.14216157]
[1743587673076,0.03,125.76,125.75,48.09436157]
[1743587675879,0.03,125.76,125.75,276.91436157]
[1743587676079,0.03,125.76,125.75,357.81436157]
[1743587680900,0.03,125.76,125.75,376.46401043]
[1743587683911,0.03,125.78,125.77,20.14216157]
[1743587684086,0.03,125.78,125.77,27.24216157]
[1743587685783,0.03,125.78,125.77,45.89181043]
[1743587686724,0.03,125.78,125.77,134.74281043]
[1743587687295,0.03,125.78,125.77,116.09316157]
[1743587690307,0.03,125.78,125.77,344.85316157]
[1743587697526,0.03,125.78,125.77,363.50281043]
[1743587697743,0.03,125.82,125.81,20.14216157]
[1743587697909,0.03,125.82,125.81,108.14216157]
[1743587699314,0.03,125.82,125.81,27.1]
[1743587701942,0.03,125.82,125.81,248.72]
[1743587702133,0.03,125.82,125.81,255.82]
[1743587704057,0.03,125.82,125.81,255.96216157]
[1743587705224,0.03,125.82,125.81,263.91056157]
[1743587705424,0.03,125.82,125.81,255.96216157]
[1743587710844,0.03,125.82,125.81,263.91056157]
[1743587714033,0.03,125.82,125.81,255.96216157]
[1743587723965,0.03,125.82,125.81,255.82]
[1743587724151,12.83542881,125.82,125.81,235.82]
[1743587724465,12.83542881,125.82,125.81,228.72]
[1743587724667,20.92192881,125.82,125.81,235.82]
[1743587725161,8.25866157,125.82,125.81,235.82]
[1743587725966,16.20646157,125.82,125.81,235.82]
[1743587727073,28.86972881,125.82,125.81,235.82]
[1743587731971,16.20646157,125.82,125.81,235.82]
[1743587733153,28.86972881,125.82,125.81,235.82]
[1743587735467,16.20646157,125.82,125.81,235.82]
[1743587737254,0.17216157,125.82,125.81,255.82]
[1743587737856,0.03,125.82,125.81,255.96216157]
[1743587746385,0.03,125.82,125.81,255.82]
[1743587747389,0.03,125.82,125.81,248.72]
[1743587747691,0.03,125.82,125.81,255.8]
[1743587755101,0.03,125.82,125.81,248.72]
[1743587755267,0.03,125.82,125.81,255.8]
[1743587757495,0.03,125.82,125.81,248.72]
[1743587757699,0.03,125.82,125.81,255.8]
[1743587758777,14.38302881,125.82,125.81,235.8]
[1743587760805,22.33082881,125.82,125.81,235.8]
[1743587761678,40.98047767,125.82,125.81,228.72]
[1743587762002,40.98047767,125.82,125.81,235.8]
[1743587764089,40.98047767,125.82,125.81,7.08]
[1743587768299,0.14216157,125.81,125.78,228.803]
[1743587768599,0.14216157,125.79,125.78,228.803]
[1743587768798,12.80542881,125.79,125.78,228.803]
[1743587769384,20.75512881,125.79,125.78,228.803]